Cogmind - Beta 14 --- EXPLORER MODE // 2024.11.23 @ 12:24:34 Player: Sparks Result: Destroyed by Executioner with Helical Railgun Performance ------------- Evolutions (5) 2500 Regions Visited (14) 2800 Robots Destroyed (216) 1080 Value Destroyed (7411) 7411 Prototype IDs (6) 120 Alien Tech Used (0) 0 Bonus (1328) 1328 TOTAL SCORE: 15239 Bonus ------- High Alert Combat Kills 30 Follower Combat Kills 297 Entered Garrisons 200 Met Warlord at Base 500 MAIN.C Attacked Warlord 500 Warlord Defense Kills 126 Friendly Fire -325 Cogmind --------- Core Integrity 0/1000 Matter 300/300 Energy 721/755 System Corruption 0% Temperature Cool (6) Movement Walking (120) Location -5/Warlord Parts ------- > --- POWER (3) -------- Improved Deuterium Engine Neutrino Core > --- PROPULSION (6) --- Carbon-fiber Leg Carbon-fiber Leg Flexi-carbon Leg Enhanced Flexi-carbon Leg > --- UTILITY (6) ------ Advanced Heat Sink High-capacity Battery Improved Target Analyzer Improved Actuator Array Focal Shield > --- WEAPON (3) ------- (None) > --- INVENTORY (5) ---- Myomer Leg Improved Reaction Control System Drone Bay (2/2) Peak State ------------ > --- POWER ------------ Light Angular Momentum Engine Micro Fission Core > --- PROPULSION ------- Improved Carbon-fiber Leg Flexi-carbon Leg Flexi-carbon Leg Enhanced Flexi-carbon Leg Nuclear Pulse Array > --- UTILITY ---------- Medium Storage Unit High-capacity Battery Improved Sensor Array Advanced ECM Suite Layered Heavy Armor Plating > --- WEAPON ----------- Plasma Rifle Variable Charge Gun Gauss Rifle > --- INVENTORY -------- Advanced Heat Sink Improved Sensor Array Matter Filter Focal Shield Improved Focal Shield Improved Hardlight Generator Gauss Rifle [Rating: 83] Favorites ----------- Power Improved Ion Engine Engine Improved Ion Engine Power Core Light Nuclear Core Propulsion Carbon-fiber Leg Leg Carbon-fiber Leg Hover Unit Aerolev Unit Flight Unit VTOL Module Utility Improved Targeting Computer Device Advanced Heat Sink Storage Huge Storage Unit Processor Improved Targeting Computer Hackware Hacking Suite Protection Layered Heavy Armor Plating Weapon Heavy Particle Gun Energy Gun Heavy Particle Gun Energy Cannon Proton Cannon Ballistic Gun Assault Rifle Ballistic Cannon Flak Cannon Launcher Long-range Missile Launcher Special Weapon Improved Remote Datajack Special Melee Weapon Dirty Datajack Build | -11 -10 -10 -10 -9 -8 -7 -7 -7 -6 -6 -6 -5 -5 -5 ------- Run | Yrd Mat Min Exi Min Mat Fac Low Low Fac Gar Fac Fac Upp War Slots Evolved 11 | . 1 . . . 4 2 . . 2 . . 2 . . Power 2 | . 1 . . . . . . . . . . 1 . . Propulsion 4 | . . . . . 1 2 . . 1 . . . . . Utility 4 | . . . . . 2 . . . 1 . . 1 . . Weapon 1 | . . . . . 1 . . . . . . . . . Parts Attached 156 | 7 2 . . . 14 14 7 8 7 25 9 50 8 5 Power 35 | 1 1 . . . 4 4 1 1 . 4 4 11 3 1 Engine 17 | 1 1 . . . 4 2 1 . . 3 1 3 1 . Core 18 | . . . . . . 2 . 1 . 1 3 8 2 1 Reactor . | . . . . . . . . . . . . . . . Propulsion 57 | 2 . . . . 5 7 3 4 5 12 3 13 1 2 Treads . | . . . . . . . . . . . . . . . Leg 49 | 2 . . . . 1 6 3 4 5 12 3 10 1 2 Wheel . | . . . . . . . . . . . . . . . Hover 5 | . . . . . 4 1 . . . . . . . . Flight 3 | . . . . . . . . . . . . 3 . . Utility 30 | 2 1 . . . 2 . 3 . 1 5 2 12 2 . Device 17 | . . . . . . . 2 . . 2 1 10 2 . Storage 5 | 1 . . . . 2 . . . . 2 . . . . Processor 5 | 1 1 . . . . . . . . 1 1 1 . . Hackware 1 | . . . . . . . 1 . . . . . . . Protection 2 | . . . . . . . . . 1 . . 1 . . Artifact . | . . . . . . . . . . . . . . . Weapon 34 | 2 . . . . 3 3 . 3 1 4 . 14 2 2 Energy Gun 17 | . . . . . 1 2 . 2 1 4 . 5 1 1 Energy Cannon 1 | . . . . . . . . . . . . . . 1 Ballistic Gun 8 | 2 . . . . . . . . . . . 6 . . Ballistic Cannon 1 | . . . . . 1 . . . . . . . . . Launcher 1 | . . . . . . . . 1 . . . . . . Special Weapon 4 | . . . . . . 1 . . . . . 3 . . Impact Weapon . | . . . . . . . . . . . . . . . Slashing Weapon . | . . . . . . . . . . . . . . . Piercing Weapon . | . . . . . . . . . . . . . . . Special Melee Weapon 2 | . . . . . 1 . . . . . . . 1 . Unidentified Prototypes 5 | . . . . . 2 1 . . . 1 . 1 . . Parts Lost 95 | . . . . . 9 3 3 6 1 22 3 38 2 8 Power 22 | . . . . . 3 2 1 1 . 4 1 8 . 2 Propulsion 31 | . . . . . 3 . 1 2 . 9 2 12 . 2 Utility 18 | . . . . . . . 1 . . 5 . 9 2 1 Weapon 24 | . . . . . 3 1 . 3 1 4 . 9 . 3 Highest Loss Streak 11 | . . . . . 2 1 3 6 1 6 2 11 2 7 To Critical Strikes 3 | . . . . . 1 . . . . . . 2 . . Average Slot Usage (%) 83 | . 100 100 100 100 69 90 93 99 98 86 99 86 84 87 Engine 11 | . 25 25 25 25 13 5 1 7 6 8 9 2 5 5 Core 3 | . . . . . . 8 12 6 6 2 2 11 11 10 Leg 19 | . 25 25 25 25 4 34 34 34 36 29 37 22 18 22 Hover 3 | . . . . . 8 . . . . . . . . . Device 3 | . . . . . . . 1 7 6 4 5 12 21 21 Storage 13 | . 12 12 12 12 16 14 12 7 6 12 18 12 5 5 Processor 7 | . 12 12 12 12 8 7 7 7 6 7 6 2 5 5 Energy Gun 9 | . . . . . 6 16 21 17 11 15 18 7 11 7 Ballistic Gun 5 | . 25 25 25 25 3 . . . . . . 6 . . Ballistic Cannon 3 | . . . . . 7 2 . . . . . . . . Peak Build Rating 83 | 7 9 9 10 10 36 46 52 52 58 58 64 83 81 82 Average Rating 36 | 4 8 9 9 10 22 41 47 50 55 47 61 69 76 78 On Entrance 37 | . 7 9 9 10 10 34 46 52 49 56 57 63 75 80 Naked Turns . | . . . . . . . . . . . . . . . Heaviest Build 305 | 16 21 21 21 21 305 302 300 118 125 125 126 137 59 56 Greatest Support 116 | 20 20 20 20 20 24 75 75 75 90 105 105 116 78 108 Greatest Overweight (x) 98 | . 1 1 1 1 98 4 4 2 2 4 1 18 1 . Average Overweight (x) 3 | . 1 1 1 1 21 3 2 1 1 1 1 2 . . Largest Inventory Capacity 35 | 10 10 10 10 10 35 35 35 25 25 25 25 25 5 5 Average Capacity 26 | 7 10 10 10 10 35 35 32 25 25 25 25 15 5 5 Most Carried 35 | 5 6 7 9 10 35 35 29 23 18 19 25 25 5 5 Average Carried 16 | 2 4 6 8 9 19 24 26 20 15 11 18 12 3 4 Final Capacity 35 | 10 10 10 10 10 35 35 25 25 25 25 25 5 5 5 Final Carried 35 | 3 6 7 9 10 35 27 24 17 16 11 25 4 4 3 Class Distribution -------------------- 37% | Hauler-Mutant 15% | Hacker-Mutant 14% | Hauler-Gunner 12% | Scavenger-Gunner 11% | Hacker-Gunner 4% | Scavenger-Mutant Dominant Class ---------------- Hacker-Mutant | -10/Materials Hacker-Mutant | -10/Mines Hacker-Mutant | -10/Exiles Hacker-Mutant | -9/Mines Hauler-Mutant | -8/Materials Hauler-Gunner | -7/Factory Hauler-Gunner | -7/Lower Caves Hacker-Gunner | -7/Lower Caves Hacker-Gunner | -6/Factory Scavenger-Gunner | -6/Garrison Scavenger-Gunner | -6/Factory Scavenger-Gunner | -5/Factory Scavenger-Gunner | -5/Upper Caves Scavenger-Mutant | -5/Warlord Resources | -11 -10 -10 -10 -9 -8 -7 -7 -7 -6 -6 -6 -5 -5 -5 ----------- Run | Yrd Mat Min Exi Min Mat Fac Low Low Fac Gar Fac Fac Upp War Matter Collected 3919 | 151 123 116 . . 954 195 196 228 65 329 188 1086 233 55 Remotely 20 | . . . . . . . 20 . . . . . . . Salvage Created 9159 | . 161 13 . . 1962 901 695 432 199 962 1183 2246 356 49 Parts 394 | . 9 2 . . 117 43 20 19 6 34 33 98 13 . Haulers Intercepted 2 | . . . . . 2 . . . . . . . . . Recyclers Shooed 7 | . . . . . 3 . . . . . 2 2 . . Parts Field Recycled . | . . . . . . . . . . . . . . . Retrieved Matter . | . . . . . . . . . . . . . . . Parts Self-Destructed . | . . . . . . . . . . . . . . . Prevented . | . . . . . . . . . . . . . . . Kills | -11 -10 -10 -10 -9 -8 -7 -7 -7 -6 -6 -6 -5 -5 -5 ------- Run | Yrd Mat Min Exi Min Mat Fac Low Low Fac Gar Fac Fac Upp War Combat Hostiles Destroyed 142 | . 5 1 . . 23 12 15 10 1 18 22 30 4 1 Guns 113 | . 5 1 . . 11 10 15 9 1 13 19 27 2 . Cannons 14 | . . . . . 12 2 . . . . . . . . AOE 2 | . . . . . . . . 1 . 1 . . . . Classes Destroyed 14 | . 2 . . . 8 2 1 . . . . . . 1 Worker 28 | . . . . . 16 2 . . 1 . 2 7 . . Builder 8 | . . . . . 6 1 . . . . . 1 . . Tunneler 2 | . . . . . 1 . . . . . 1 . . . Hauler 2 | . . . . . 2 . . . . . . . . . Recycler 19 | . . . . . 13 3 . . 1 . . 2 . . Watcher 13 | . . . . . 4 3 . . . . 3 3 . . Swarmer 30 | . 2 1 . . 8 2 3 2 . 1 7 4 . . Grunt 56 | . 3 . . . 5 6 9 6 . 9 8 9 1 . Brawler 6 | . . . . . . . 1 . . 2 . 2 1 . Duelist 5 | . . . . . . 1 . . . 4 . . . . Sentry 18 | . . . . . 7 . 2 1 . 2 4 2 . . Demolisher 1 | . . . . . . . . . . . . . . 1 Hunter 16 | . . . . . 3 2 . 1 1 1 1 5 2 . Programmer 11 | . . . . . . 1 . . . . 2 8 . . Packrat 1 | . . . . . . . . . . . . . 1 . Thug 1 | . . . . . . . . . . 1 . . . . Best Kill Streak 7 | . 3 1 . . 5 5 6 7 2 4 3 4 2 1 Combat Bots Only 7 | . 3 1 . . 3 3 6 7 1 4 2 4 2 1 Max Kills in Single Turn 2 | . 1 1 . . 2 1 1 2 1 2 2 2 1 1 Gunslinging 1 | . . . . . . . . 1 . 1 1 . . . Exploded 1 | . . . . . . . . 1 . 1 . . . . Melee . | . . . . . . . . . . . . . . . Uniques/NPCs Destroyed . | . . . . . . . . . . . . . . . Combat | -11 -10 -10 -10 -9 -8 -7 -7 -7 -6 -6 -6 -5 -5 -5 -------- Run | Yrd Mat Min Exi Min Mat Fac Low Low Fac Gar Fac Fac Upp War Hostile Shots Fired 1401 | . 25 7 . . 209 48 59 51 18 210 206 397 48 123 Missed 377 | . 7 1 . . 56 11 16 10 4 49 90 74 13 46 Damage Taken 11613 | . 136 23 . . 1221 475 895 496 150 1987 888 3974 317 1051 Core 2558 | . 21 4 . . 235 77 436 22 24 608 129 685 50 267 Absorbed by Shields 112 | . . . . . . . . . . 58 . 54 . . Ignored by Resistances 6986 | . 87 19 . . 783 236 279 295 90 989 562 2295 310 1041 Regen/Repaired (Parts) 208 | . . . . . . . . . . . 61 . . 147 Core Remaining (%) 56 | 100 . . . 90 57 . . 23 . . 10 . . . Volleys Fired 553 | . 22 3 . . 112 42 23 23 14 65 64 158 19 8 Largest 3 | . 2 2 . . 3 3 3 3 2 3 3 3 2 2 Hottest 204 | . 40 40 . . 119 196 196 196 126 204 204 204 146 140 Shots Fired 1133 | . 44 6 . . 247 67 66 35 19 127 176 295 39 12 Gun 1012 | . 44 6 . . 147 56 66 33 19 125 176 295 39 6 Cannon 115 | . . . . . 100 9 . . . . . . . 6 Launcher 4 | . . . . . . . . 2 . 2 . . . . Special 2 | . . . . . . 2 . . . . . . . . Kinetic 380 | . 44 6 . . 199 9 . . . . . 122 . . Thermal 671 | . . . . . 48 56 66 26 19 125 176 143 12 . Explosive 4 | . . . . . . . . 2 . 2 . . . . Electromagnetic 76 | . . . . . . . . 7 . . . 30 27 12 Robot Hit Streak 50 | . 27 4 . . 50 22 24 40 25 28 23 24 6 4 Robot Miss Streak 5 | . 1 1 . . 3 2 2 1 . 2 5 4 2 1 Penetration Max 3 | . . . . . . . . . . . . 3 . . Secondary Targets 18 | . . . . . . . 2 2 . 6 4 4 . . Max Gunslinging Chain 1 | . . . . . . . 1 1 . 1 1 1 . . Shots Hit Robots 935 | . 37 4 . . 197 56 56 29 19 110 130 243 28 26 Core Hits 556 | . 10 1 . . 159 53 39 26 7 49 78 113 11 10 Critical Kills 6 | . . . . . 1 . . . . . . 5 . . Critical Parts Destroyed 11 | . . . . . 2 . . . . . . 9 . . Critical Strikes 46 | . . . . . 4 4 3 1 2 2 7 20 3 . Burn 28 | . . . . . 1 4 3 1 2 2 7 6 2 . Destroy 17 | . . . . . 3 . . . . . . 14 . . Corrupt 1 | . . . . . . . . . . . . . 1 . Melee Attacks 20 | . . . . . . . . . . . . . 2 18 Impact . | . . . . . . . . . . . . . . . Slashing . | . . . . . . . . . . . . . . . Piercing 20 | . . . . . . . . . . . . . 2 18 Sneak Attacks . | . . . . . . . . . . . . . . . Combat Hostiles . | . . . . . . . . . . . . . . . Follow-up Attacks . | . . . . . . . . . . . . . . . Damage Inflicted 18455 | . 393 41 . . 3495 1350 1186 814 321 2181 3019 4856 605 194 Guns 15524 | . 393 41 . . 1711 1190 1186 506 321 1899 2863 4728 599 87 Cannons 2027 | . . . . . 1784 160 . . . . . . . 83 Explosions 872 | . . . . . . . . 308 . 282 154 128 . . Melee 30 | . . . . . . . . . . . . . 6 24 Ramming 2 | . . . . . . . . . . . 2 . . . Kinetic 4921 | . 393 41 . . 2710 160 . . . . . 1617 . . Thermal 11597 | . . . . . 785 1190 1186 552 321 1899 2863 2633 168 . Explosive 608 | . . . . . . . . 172 . 282 154 . . . Electromagnetic 1297 | . . . . . . . . 90 . . . 606 431 170 Impact . | . . . . . . . . . . . . . . . Slashing . | . . . . . . . . . . . . . . . Piercing 30 | . . . . . . . . . . . . . 6 24 Highest Corruption 20 | . . . . . . . . . . 2 2 18 20 20 Average Corruption 5 | . . . . . . . . . . 2 2 6 18 20 Corruption Purged 1 | . . . . . . . . . . . . 1 . . Corruption Blocked . | . . . . . . . . . . . . . . . Effects 117 | . . . . . . . . . . 11 32 38 35 1 Message Errors 31 | . . . . . . . . . . 3 7 9 11 1 Matter Fused 26 | . . . . . . . . . . 3 8 10 5 . Heat Flow Errors 10 | . . . . . . . . . . 1 3 1 5 . Energy Discharges 10 | . . . . . . . . . . 1 2 4 3 . Parts Rejected 1 | . . . . . . . . . . . 1 . . . Data Loss (minor) 16 | . . . . . . . . . . 1 4 5 6 . Data Loss (major) 7 | . . . . . . . . . . . 2 2 3 . Misfires 7 | . . . . . . . . . . 1 2 3 1 . Alerts 2 | . . . . . . . . . . . 2 . . . Misdirections 1 | . . . . . . . . . . . . . 1 . Weapon Failures 6 | . . . . . . . . . . 1 1 4 . . Overload Shots . | . . . . . . . . . . . . . . . Overflow Damage 14 | . . . . . 6 . . 8 . . . . . . Projectiles 6 | . . . . . 6 . . . . . . . . . Explosions 8 | . . . . . . . . 8 . . . . . . Melee . | . . . . . . . . . . . . . . . Knockbacks 30 | . . . . . 27 2 . . . . 1 . . . Impact 1 | . . . . . . . . . . . 1 . . . Kinetic 29 | . . . . . 27 2 . . . . . . . . Secondary . | . . . . . . . . . . . . . . . Self-Inflicted Damage . | . . . . . . . . . . . . . . . Shots . | . . . . . . . . . . . . . . . Rammed . | . . . . . . . . . . . . . . . Targets Rammed 1 | . . . . . . . . . . . 1 . . . Kicked 1 | . . . . . . . . . . . 1 . . . Crushed . | . . . . . . . . . . . . . . . Highest Temperature 1017 | . 64 10 . . 315 704 670 591 228 550 520 1017 539 42 Average Temperature 190 | . 19 7 . . 58 160 297 253 77 252 171 225 176 18 Received Heat Transfer 3186 | . 99 . . . 450 180 342 297 . 588 276 873 72 9 Effects 272 | . . . . . . 12 35 16 . 42 29 125 13 . Shutdowns 94 | . . . . . . 5 13 5 . 14 10 41 6 . Energy Bleed 21 | . . . . . . 1 5 . . 1 3 10 1 . Interference 52 | . . . . . . 4 4 4 . 7 8 22 3 . Matter Decay 17 | . . . . . . . 2 4 . 1 1 9 . . Short Circuit 17 | . . . . . . . 3 2 . 1 2 8 1 . Damage (minor) 24 | . . . . . . . 3 1 . 5 2 11 2 . Damage (major) 36 | . . . . . . 1 1 . . 9 3 22 . . Damage (core) 11 | . . . . . . 1 4 . . 4 . 2 . . Siege Activations . | . . . . . . . . . . . . . . . Robots Corrupted 4 | . . . . . . . . . . . . 1 2 1 Combat Hostiles 4 | . . . . . . . . . . . . 1 2 1 Parts Fried 8 | . . . . . . . . . . . . 5 2 1 Impact Corruptions . | . . . . . . . . . . . . . . . Robots Melted 9 | . . . . . . . . . . 4 3 2 . . Combat Hostiles 9 | . . . . . . . . . . 4 3 2 . . Parts Melted 75 | . . . . . . 10 5 . . 7 24 28 1 . Heat Transferred 25184 | . . . . . 1591 2822 2653 1077 851 3716 6458 5609 407 . Parts Sabotaged . | . . . . . . . . . . . . . . . Parts Stolen . | . . . . . . . . . . . . . . . Parts Stripped . | . . . . . . . . . . . . . . . Power Chain Reactions 2 | . . . . . . . . 1 . . . 1 . . Alert | -11 -10 -10 -10 -9 -8 -7 -7 -7 -6 -6 -6 -5 -5 -5 ------- Run | Yrd Mat Min Exi Min Mat Fac Low Low Fac Gar Fac Fac Upp War Peak Influence 471 | . 138 82 . . 165 224 . . 52 471 239 189 . . Initial 183 | . . 37 . . . . . . 9 . 183 40 . . Average 42 | . 51 72 . . 13 62 . . 27 242 89 61 . . Maximum Alert Level 2 | . . . . . . 1 . . . 2 1 . . . Low Security (%) 94 | 100 100 100 . 100 100 97 . . 100 32 85 100 . . Level 1 4 | . . . . . . 2 . . . 53 14 . . . Level 2 . | . . . . . . . . . . 14 . . . . Level 3 . | . . . . . . . . . . . . . . . Level 4 . | . . . . . . . . . . . . . . . Level 5 . | . . . . . . . . . . . . . . . High Security . | . . . . . . . . . . . . . . . Max Security . | . . . . . . . . . . . . . . . Squads Dispatched 16 | . . . . . 1 2 . 1 1 . 6 5 . . Investigation 4 | . . . . . . 1 . 1 1 . 1 . . . Extermination 6 | . . . . . . 1 . . . . 2 3 . . Reinforcement 6 | . . . . . 1 . . . . . 3 2 . . Assault . | . . . . . . . . . . . . . . . Garrison . | . . . . . . . . . . . . . . . Intercept . | . . . . . . . . . . . . . . . Searches Triggered . | . . . . . . . . . . . . . . . Construction Impeded . | . . . . . . . . . . . . . . . Haulers Reinforced 1 | . . . . . . . . . . . 1 . . . Active Scanning Responses . | . . . . . . . . . . . . . . . Cargo Convoy Interrupts . | . . . . . . . . . . . . . . . Stealth | -11 -10 -10 -10 -9 -8 -7 -7 -7 -6 -6 -6 -5 -5 -5 --------- Run | Yrd Mat Min Exi Min Mat Fac Low Low Fac Gar Fac Fac Upp War Distress Signals 7 | . 1 . . . 1 2 . . . . . 1 . 2 Communications Jammed . | . . . . . . . . . . . . . . . Distress Signals . | . . . . . . . . . . . . . . . Times Spotted 231 | . 8 2 . . 35 16 16 11 2 30 34 44 5 28 Peak Tracking Total 12 | . 3 2 . . 3 4 4 4 1 7 3 5 2 12 Tactical Retreats 12 | . 1 1 . . . . . . . 1 1 3 . 5 Traps | -11 -10 -10 -10 -9 -8 -7 -7 -7 -6 -6 -6 -5 -5 -5 ------- Run | Yrd Mat Min Exi Min Mat Fac Low Low Fac Gar Fac Fac Upp War Traps Triggered 12 | . . . . . 2 2 . . 1 3 2 2 . . Indirectly . | . . . . . . . . . . . . . . . Trap Hack Attempts . | . . . . . . . . . . . . . . . Triggered . | . . . . . . . . . . . . . . . Disarmed 1 | . . . . . . . . . . . 1 . . . Reprogrammed . | . . . . . . . . . . . . . . . Reused . | . . . . . . . . . . . . . . . Traps Extracted . | . . . . . . . . . . . . . . . Installed . | . . . . . . . . . . . . . . . Triggered 3 | . . . . . . . . . . . . . . 3 Machines | -11 -10 -10 -10 -9 -8 -7 -7 -7 -6 -6 -6 -5 -5 -5 ---------- Run | Yrd Mat Min Exi Min Mat Fac Low Low Fac Gar Fac Fac Upp War Machines Disabled 7 | . . . . . . . . . . 1 5 . . 1 Max in Single Turn 4 | . . . . . . . . . . 1 4 . . 1 Garrison Access 1 | . . . . . . . . . . . 1 . . . Garrison Relay 1 | . . . . . . . . . . 1 . . . . Machines Repaired . | . . . . . . . . . . . . . . . Machines Dismantled . | . . . . . . . . . . . . . . . Machines Sabotaged . | . . . . . . . . . . . . . . . Overloaded Fab Kills . | . . . . . . . . . . . . . . . Hacking | -11 -10 -10 -10 -9 -8 -7 -7 -7 -6 -6 -6 -5 -5 -5 --------- Run | Yrd Mat Min Exi Min Mat Fac Low Low Fac Gar Fac Fac Upp War Machines Accessed 37 | . 2 . 4 . 2 2 3 1 4 1 9 1 1 7 Terminals 15 | . 2 . . . 1 1 1 1 2 1 5 1 . . Fabricators 3 | . . . . . . 1 . . 1 . 1 . . . Repair Stations 1 | . . . . . . . . . . . 1 . . . Recycling Units . | . . . . . . . . . . . . . . . Scanalyzers 2 | . . . . . 1 . . . . . 1 . . . Garrison Access 2 | . . . . . . . . . 1 . 1 . . . Total Hacks 119 | . 6 . 49 . 4 3 9 3 10 2 20 2 1 10 Successful 110 | . 6 . 49 . 4 1 9 3 7 1 17 2 1 10 Failed 9 | . . . . . . 2 . . 3 1 3 . . . Catastrophic . | . . . . . . . . . . . . . . . Database Lockouts . | . . . . . . . . . . . . . . . Manual 2 | . . . 1 . . . . . . . . . . 1 Terminals 42 | . 6 . . . 2 1 7 3 7 2 12 2 . . Fabricators 4 | . . . . . . 2 . . 1 . 1 . . . Repair Stations 2 | . . . . . . . . . . . 2 . . . Recycling Units . | . . . . . . . . . . . . . . . Scanalyzers 4 | . . . . . 2 . . . . . 2 . . . Garrison Access 5 | . . . . . . . . . 2 . 3 . . . Terminal Hacks 99 | . 6 . 49 . 2 1 9 3 4 1 11 2 1 10 Record 83 | . 4 . 49 . 1 . 8 3 . . 7 1 . 10 Open Door 3 | . . . . . . . 1 . . 1 . . 1 . Open DSF 3 | . . . . . . 1 . . 1 . 1 . . . Emergency Access Points 1 | . . . . . . . . . . . 1 . . . Scanalyzer Index 1 | . . . . . 1 . . . . . . . . . Unreport Threat 3 | . . . . . . . . . 1 . 1 1 . . Locate Traps 1 | . 1 . . . . . . . . . . . . . Disarm Traps 1 | . . . . . . . . . . . 1 . . . Recall Investigation 1 | . . . . . . . . . 1 . . . . . Recall Reinforcements 1 | . . . . . . . . . 1 . . . . . Zone Layout 1 | . 1 . . . . . . . . . . . . . Fabricator Hacks 2 | . . . . . . . . . 1 . 1 . . . Build 2 | . . . . . . . . . 1 . 1 . . . Repair Station Hacks 2 | . . . . . . . . . . . 2 . . . Scan Component 1 | . . . . . . . . . . . 1 . . . Repair 1 | . . . . . . . . . . . 1 . . . Recycling Unit Hacks . | . . . . . . . . . . . . . . . Scanalyzer 4 | . . . . . 2 . . . . . 2 . . . Insert Component 2 | . . . . . 1 . . . . . 1 . . . Analyze 2 | . . . . . 1 . . . . . 1 . . . Garrison Access Hacks 3 | . . . . . . . . . 2 . 1 . . . Unlock Access 1 | . . . . . . . . . 1 . . . . . Seal Access 1 | . . . . . . . . . . . 1 . . . Coupler Status 1 | . . . . . . . . . 1 . . . . . Unauthorized Hacks . | . . . . . . . . . . . . . . . Terminals . | . . . . . . . . . . . . . . . Fabricators . | . . . . . . . . . . . . . . . Repair Stations . | . . . . . . . . . . . . . . . Recycling Units . | . . . . . . . . . . . . . . . Scanalyzers . | . . . . . . . . . . . . . . . Garrison Access . | . . . . . . . . . . . . . . . Data Cores Recovered . | . . . . . . . . . . . . . . . Used . | . . . . . . . . . . . . . . . Hacking Detections 16 | . 2 . . . 1 1 . 1 3 . 7 1 . . Full Trace Events 6 | . 2 . . . . 1 . 1 1 . 1 . . . Feedback Events . | . . . . . . . . . . . . . . . Feedback Blocked . | . . . . . . . . . . . . . . . Robot Schematics Acquired . | . . . . . . . . . . . . . . . Robots Built 3 | . . . . . . . . . 1 . 2 . . . Authchips . | . . . . . . . . . . . . . . . Time 157 | . . . . . . . . . 76 . 81 . . . Total Robot Build Rating 7 | . . . . . . . . . 5 . 2 . . . Part Schematics Acquired 2 | . . . . . 1 . . . . . 1 . . . Parts Built . | . . . . . . . . . . . . . . . Authchips . | . . . . . . . . . . . . . . . Time . | . . . . . . . . . . . . . . . Total Part Build Rating . | . . . . . . . . . . . . . . . Parts Repaired 1 | . . . . . . . . . . . 1 . . . Time 22 | . . . . . . . . . . . 22 . . . Parts Recycled . | . . . . . . . . . . . . . . . Recycled Matter . | . . . . . . . . . . . . . . . Retrieved Matter . | . . . . . . . . . . . . . . . Retrieved Components . | . . . . . . . . . . . . . . . Parts Scanalyzed 2 | . . . . . 1 . . . . . 1 . . . Part Schematics Acquired 2 | . . . . . 1 . . . . . 1 . . . Parts Damaged . | . . . . . . . . . . . . . . . Bothacking | -11 -10 -10 -10 -9 -8 -7 -7 -7 -6 -6 -6 -5 -5 -5 ------------ Run | Yrd Mat Min Exi Min Mat Fac Low Low Fac Gar Fac Fac Upp War Used RIF Installer . | . . . . . . . . . . . . . . . Robots Hacked 1 | . . . . . . 1 . . . . . . . . Non-combat . | . . . . . . . . . . . . . . . Combat 1 | . . . . . . 1 . . . . . . . . Robot Hacks Applied 1 | . . . . . . 1 . . . . . . . . parse_system 1 | . . . . . . 1 . . . . . . . . Relay Couplers Released 3 | . . . . . . . . . . 3 . . . . Machine Destruction 3 | . . . . . . . . . . 3 . . . . Fabnet Peak Effective % . | . . . . . . . . . . . . . . . Robots Rewired 9 | . . . . . . . . . . 9 . . . . Allies Hacked . | . . . . . . . . . . . . . . . Hacks Repelled . | . . . . . . . . . . . . . . . Allies | -11 -10 -10 -10 -9 -8 -7 -7 -7 -6 -6 -6 -5 -5 -5 -------- Run | Yrd Mat Min Exi Min Mat Fac Low Low Fac Gar Fac Fac Upp War Total Allies 15 | . . 1 . . . . . . 1 9 2 . 1 1 Largest Group 7 | . . 1 1 . . . . . 1 7 3 . 1 1 Highest-Rated Group 202 | . . 31 31 . . . . . 23 202 52 . 30 12 Highest-Rated Ally 51 | . . 31 31 . . . . . 23 51 32 . 30 12 Total Orders . | . . . . . . . . . . . . . . . Ally Attacks 51 | . . . . . . . . . . 46 4 . . 1 Total Damage 1492 | . . . . . . . . . . 1308 169 . . 15 Kills 11 | . . . . . . . . . . 11 . . . . Allies Corrupted . | . . . . . . . . . . . . . . . Allies Melted . | . . . . . . . . . . . . . . . Intel | -11 -10 -10 -10 -9 -8 -7 -7 -7 -6 -6 -6 -5 -5 -5 ------- Run | Yrd Mat Min Exi Min Mat Fac Low Low Fac Gar Fac Fac Upp War Robot Analysis Total . | . . . . . . . . . . . . . . . Derelict Logs Recovered 6 | . . . . . . . 3 1 . . . . 2 . Drone Launches . | . . . . . . . . . . . . . . . Drone Recoveries . | . . . . . . . . . . . . . . . Exploration | -11 -10 -10 -10 -9 -8 -7 -7 -7 -6 -6 -6 -5 -5 -5 ------------- Run | Yrd Mat Min Exi Min Mat Fac Low Low Fac Gar Fac Fac Upp War Turns Passed 30516 | 56 265 244 2986 767 12719 1260 2730 1578 446 1115 2269 2356 880 845 Spaces Moved 8649 | 42 104 124 1570 404 912 320 945 799 178 400 1010 673 508 660 Core 71 | 14 . . . . 52 . . . . . . 5 . . Treads . | . . . . . . . . . . . . . . . Legs 7927 | 28 104 124 1570 404 331 320 945 799 178 400 1010 546 508 660 Wheels . | . . . . . . . . . . . . . . . Hover 529 | . . . . . 529 . . . . . . . . . Flight 122 | . . . . . . . . . . . . 122 . . Fastest Speed 50 | 50 190 190 190 190 762 330 188 188 188 187 188 120 120 120 Average Speed 327 | 96 190 190 190 190 1352 351 279 189 189 205 189 272 158 120 Slowest Speed 4950 | 120 190 190 190 190 4950 410 400 262 260 425 190 950 190 120 Overloaded Moves . | . . . . . . . . . . . . . . . Propulsion Burnouts . | . . . . . . . . . . . . . . . Robots Hopped . | . . . . . . . . . . . . . . . Cave-ins Triggered . | . . . . . . . . . . . . . . . Exploration Rate (%) 43 | 3 22 23 93 78 60 10 75 77 5 42 26 20 56 65 Regions Visited 14 Branch Regions 7 Pre-discovered Areas 3 | . . . 1 . . . 2 . . . . . . . Known Exits Taken 12 | 1 1 1 1 1 1 1 1 1 1 . 1 1 . . Unknown Exits Taken 1 | . . . . . . . . . . . . . 1 . Scrap Searched 8 | . . . . 2 . . 3 1 . . . . 2 . Spaces Dug . | . . . . . . . . . . . . . . . Terrain Destroyed 91 | . . . . . . . . 13 . 38 38 2 . . Melee . | . . . . . . . . . . . . . . . Projectile 2 | . . . . . . . . . . . . 2 . . AOE 89 | . . . . . . . . 13 . 38 38 . . . Terrain Rammed . | . . . . . . . . . . . . . . . Walls Destroyed . | . . . . . . . . . . . . . . . Machines Disabled . | . . . . . . . . . . . . . . . Actions | -11 -10 -10 -10 -9 -8 -7 -7 -7 -6 -6 -6 -5 -5 -5 --------- Run | Yrd Mat Min Exi Min Mat Fac Low Low Fac Gar Fac Fac Upp War Total 9864 | 57 132 127 1574 404 1078 395 984 836 269 571 1221 954 550 712 Wait 216 | . . . . . . . . . 65 14 111 14 . 12 Move 8635 | 41 103 123 1569 403 911 319 944 798 177 399 1009 672 507 660 Hop . | . . . . . . . . . . . . . . . Pick Up 165 | 9 5 1 3 1 38 8 5 2 5 21 20 34 8 5 Fast Attach 6 | 1 . . . . . . 2 . . . . 3 . . Attach 140 | 6 1 . . . 11 12 5 8 7 25 7 46 6 6 Detach 24 | . . . . . 1 3 3 2 1 1 2 10 . 1 Swap 11 | . 1 . . . 3 2 . . . . 2 1 2 . Drop 43 | . . . 2 . 2 9 2 3 . 2 . 16 6 1 Fire 553 | . 22 3 . . 112 42 23 23 14 65 64 158 19 8 Melee 20 | . . . . . . . . . . . . . 2 18 Ram . | . . . . . . . . . . . . . . . Kick 1 | . . . . . . . . . . . 1 . . . Crush . | . . . . . . . . . . . . . . . Escape Stasis 7 | . . . . . . . . . . 2 5 . . . Rewire 43 | . . . . . . . . . . 42 . . . 1 Trap . | . . . . . . . . . . . . . . . Miscellaneous . | . . . . . . . . . . . . . . . Route ------- -11/Scrapyard -10/Materials -10/Mines -10/Exiles (discovered 2 exits: *Min x2) -9/Mines -8/Materials -7/Factory -7/Lower Caves -7/Lower Caves -6/Factory (discovered 5 exits: Fac x3 / Low / Gar) -6/Garrison -6/Factory -5/Factory -5/Upper Caves (discovered 2 exits: *Upp / *War) -5/Warlord (discovered 1 exit: *Pro) History --------- Turn | Location | Event 4 | -11/Scrapyard | Identified exit to Materials 4 | -11/Scrapyard | Discovered exit to Materials (range 16) 57 | -11/Scrapyard | Entered Materials 57 | -10/Materials | Evolved 1 slot: Power x1 274 | -10/Materials | Identified exit to Mines 274 | -10/Materials | Discovered exit to Mines (range 16) 310 | -10/Materials | Build established: Hacker-Mutant 322 | -10/Materials | Entered Mines 441 | -10/Mines | Met a Derelict bent on vengeance 493 | -10/Mines | Received a Mining Laser from a helpful Derelict 552 | -10/Mines | Deemed a non-threat by the Exiles lab entrance 554 | -10/Mines | Identified exit to Exiles 554 | -10/Mines | Discovered exit to Exiles (range 5) 566 | -10/Mines | Entered Exiles 566 | -10/Exiles | Accompanied by 1 ally 619 | -10/Exiles | Identified exit to Mines 619 | -10/Exiles | Discovered exit to Mines (range 14) 661 | -10/Exiles | Met 8R-AWN 705 | -10/Exiles | Met EX-HEX 800 | -10/Exiles | Met EX-DEC 878 | -10/Exiles | Learned location of Zion (-7) 1008 | -10/Exiles | Discovered exit to Mines (range 15) 1269 | -10/Exiles | Visited The Gauntlet 1798 | -10/Exiles | Met EX-BIN 3552 | -10/Exiles | Entered Mines 3908 | -9/Mines | Received a Rocket Launcher from a helpful Derelict 3977 | -9/Mines | Found a hidden stash of uninstalled traps 4285 | -9/Mines | Identified exit to Materials 4285 | -9/Mines | Discovered exit to Materials (range 11) 4319 | -9/Mines | Entered Materials 4319 | -8/Materials | Evolved 4 slots: Propulsion x1, Utility x2, Weapon x1 4626 | -8/Materials | Build established: Hauler-Mutant 5497 | -8/Materials | Build established: Hauler-Gunner 6504 | -8/Materials | Build established: Hauler-Mutant 7607 | -8/Materials | Build established: Hauler-Gunner 8139 | -8/Materials | Build established: Hauler-Mutant 13653 | -8/Materials | Identified exit to Factory 13653 | -8/Materials | Discovered exit to Factory (range 16) 17038 | -8/Materials | Entered Factory 17038 | -7/Factory | Evolved 2 slots: Propulsion x2 17766 | -7/Factory | Build established: Hauler-Gunner 18285 | -7/Factory | Identified exit to Lower Caves 18285 | -7/Factory | Discovered exit to Lower Caves (range 4) 18298 | -7/Factory | Entered Lower Caves 18318 | -7/Lower Caves | Learned Factory terminal intel 20284 | -7/Lower Caves | Attracted the attention of an 0b10 base 20366 | -7/Lower Caves | Core integrity fell below 50% 20390 | -7/Lower Caves | Lost 3 parts (1p1n1u) 20397 | -7/Lower Caves | Learned location of Extension (-4) 20397 | -7/Lower Caves | Learned location of Armory (-3) 20397 | -7/Lower Caves | Learned 6 Upper Caves zone layouts 20397 | -7/Lower Caves | Learned 8 Factory zone layouts 20483 | -7/Lower Caves | Learned location of 1 exit from Factory 20624 | -7/Lower Caves | Build established: Hacker-Gunner 20899 | -7/Lower Caves | Learned 4 Factory zone layouts 20906 | -7/Lower Caves | Identified exit to Lower Caves 20906 | -7/Lower Caves | Discovered exit to Lower Caves (range 11) 20948 | -7/Lower Caves | Attracted the attention of an 0b10 checkpoint 21028 | -7/Lower Caves | Entered another Lower Caves area 21029 | -7/Lower Caves | Identified exit to Factory 21696 | -7/Lower Caves | Encountered a Warlord checkpoint 21836 | -7/Lower Caves | Attracted the attention of an 0b10 base 21889 | -7/Lower Caves | Destroyed 7 combat bots 21891 | -7/Lower Caves | Lost 6 parts (1p2n3w) 21939 | -7/Lower Caves | Learned Factory interactive machine intel 22606 | -7/Lower Caves | Entered Factory 22606 | -6/Factory | Evolved 2 slots: Propulsion x1, Utility x1 22607 | -6/Factory | Identified exit to Factory 22608 | -6/Factory | Identified exit to Lower Caves 22610 | -6/Factory | Loaded intel: 51 interactive machine locations 22611 | -6/Factory | Loaded intel: 26 terminal locations 22969 | -6/Factory | Fabricated M-22 Extractor (x1) 23051 | -6/Factory | Identified exit to Garrison 23052 | -6/Factory | Entered Garrison 23052 | -6/Garrison | Accompanied by 1 ally 23078 | -6/Garrison | Triggered checkpoint 23132 | -6/Garrison | Lost 3 parts (1p2n) 23288 | -6/Garrison | Triggered checkpoint 23305 | -6/Garrison | Garrison Relay disabled 23313 | -6/Garrison | Core integrity fell below 50% 23343 | -6/Garrison | Lost 3 parts (1p2w) 23429 | -6/Garrison | Lost 6 parts (3n2u1w) 23565 | -6/Garrison | Lost 4 parts (2p1n1u) 23820 | -6/Garrison | Triggered checkpoint 23826 | -6/Garrison | Triggered checkpoint 23896 | -6/Garrison | Triggered checkpoint 24055 | -6/Garrison | Lost 4 allies 24147 | -6/Garrison | Identified exit to Factory 24147 | -6/Garrison | Discovered exit to Factory (range 10) 24167 | -6/Garrison | Entered Factory 24167 | -6/Factory | Accompanied by 2 allies 24224 | -6/Factory | Repaired Imp. Deuterium Engine 24249 | -6/Factory | Build established: Scavenger-Gunner 24722 | -6/Factory | Fabricated R-06 Scavenger (x2) 25560 | -6/Factory | Core integrity fell below 20% 25815 | -6/Factory | Build established: Hacker-Gunner 26390 | -6/Factory | Discovered exit to Factory (range 13) 26402 | -6/Factory | Build established: Scavenger-Gunner 26436 | -6/Factory | Entered another Factory area 26436 | -5/Factory | Evolved 2 slots: Power x1, Utility x1 27172 | -5/Factory | Lost 3 parts (2p1w) 27302 | -5/Factory | Lost 6 parts (1p4n1w) 27330 | -5/Factory | Spotted B-75 Beast 27512 | -5/Factory | Lost 6 parts (1p2n1u2w) 27693 | -5/Factory | Core integrity fell below 50% 27734 | -5/Factory | Lost 3 parts (1p1n1u) 28298 | -5/Factory | Build established: Scavenger-Tank 28510 | -5/Factory | System corruption reached 10% 28567 | -5/Factory | Lost 11 parts (2p2n4u3w) 28782 | -5/Factory | Identified exit to Upper Caves 28782 | -5/Factory | Discovered exit to Upper Caves (range 5) 28792 | -5/Factory | Entered Upper Caves 28793 | -5/Upper Caves | Identified exit to Upper Caves 28803 | -5/Upper Caves | Encountered a Warlord checkpoint 28911 | -5/Upper Caves | Build established: Scavenger-Gunner 28941 | -5/Upper Caves | Learned Factory garrison access intel 28946 | -5/Upper Caves | Learned Factory emergency access door positions 29611 | -5/Upper Caves | A Derelict revealed a hidden shortcut to "reach the base" 29672 | -5/Upper Caves | Entered Warlord 29714 | -5/Warlord | System corruption cleaned by Quarantine Array 29754 | -5/Warlord | Build established: Scavenger-Mutant 29854 | -5/Warlord | Found Prototype Device 29917 | -5/Warlord | Met Warlord 29942 | -5/Warlord | Warlord's base attacked by MAIN.C 30292 | -5/Warlord | Warlord forces counterattacked 30415 | -5/Warlord | Spotted Striker 30415 | -5/Warlord | Spotted Striker 30416 | -5/Warlord | Spotted Executioner 30453 | -5/Warlord | Spotted Executioner 30455 | -5/Warlord | Spotted Striker 30459 | -5/Warlord | Spotted Executioner 30469 | -5/Warlord | Core integrity fell below 20% 30485 | -5/Warlord | Identified exit to Proximity Caves 30485 | -5/Warlord | Discovered exit to Proximity Caves (range 15) 30516 | -5/Warlord | Lost 19 allies 30517 | -5/Warlord | Destroyed by Executioner with Helical Railgun Last Messages --------------- Striker destroyed. Splicing Executioner... Executioner system unaffected. Splicing Executioner... Executioner system unaffected. Dirty Datajack expended. Splicing Executioner... Executioner system unaffected. Relay Coupler [Behemoth] fries itself. Penetrated by Slug. Slug penetrates Earth. Slug penetrates Wall. Acquired 20 matter. Penetrated by Slug. Neutrino Core destroyed. Slug penetrates Wall. Penetrated by Slug. Carbon-fiber Leg destroyed. Penetrated by Slug. [Achievement: Back For More] Map ----- +----------------------------------------------------+ | | | | | | | | | | | | | | | | | | | | | | | ??????????????????????????????????????????????? | | ??????????????????????????????????????????????? | | ??????????????????????????????????????????????? | | ???###????????????????????????????????????????? | | ??## ########?????????????????????????????????? | | ??# #?????????????????????????????????? | | ### #?????????????????????????????????? | | # ########?????????????????????????????????? | | # #??????????????????????????##????????????? | | # #???????????????###???????# #????????????? | | # #???????????????# #?????# #?????????????? | | # #????????????????# ;##### #??????????????? | | #^ #????????????????#;; ;# #???????????????? | | #^ #######??????????## ;#????????????????? | | + ## !!"##?????????# @%=#?????????????????? | | ### # ! "#?????????# EgE##????????????< ??? | | ??# + X"#?????????# h#????????? ??? | | ??# ###"X "#?????????# h h##???????? #??? | | ??# #?#"""!!#?????????## h #??????? #???? | | #?# #?#"""!!#??????????##; ##?????? #???? | | #?# #?#######???????????##; #?????? #????? | | #?# #????????????????????##; ;#??### #?????? | | ??# #?????????????????????## ;#### ###???? | | ??# #??????????????????????# ###?? | | ??# #??????????????????????## ### ### ##? | | ### #???????????????????????## ###" #? | | #??????""#???????????????##; "" # ?? | | #???#??""#????????????????## "## #?? | | ###? ##""#????????????#?###"" *%"#?? #?? | | # # ### #""##???????????# # #"" ! ##? ##? | | # # # ""!############## "" !"#?# #? | | ""=!!"=## # " "" ""!/!###% #?? | | # ""==%=! "" % ##%==#% ##?? | | % ""=*=[%]! [*!##%%!/*##??? | | % %=%%*[[%[%% %*%!%= %%!!*%[!%**##??? | | % ===[=%!=%%!!*%| ===[! %%%%*[%=%%%! #??? | | !%%!==[%%%[%=%%[!%%%! % =%=[=="!"%%#??? | | =[*|%% !=**%%=% !! % #[!%%!" " #??? | | !!!""*[[= !* # # =[="## " ##?? | +----------------------------------------------------+ Best States ------------- Heat Dissipation 78 Energy Generation 42 Energy Capacity 805 Matter Stores 300 Matter Capacity 300 Sight Range 16 Robot Scan Range 15 Terrain Scan Density 10 ECM Strength 2 Armor Coverage 600 Resistance: KI 60 Resistance: TH 35 Resistance: EX 35 Resistance: EM 35 Resistance: I 35 Resistance: S 35 Resistance: P 35 Phase Shifting 5 Evasion (%) 60 Targeting Accuracy 6 Target Analysis 6 Matter Filtering 30 Offensive Hacking 30 Item Schematics ----------------- Imp. Flight Unit | -8/Materials | Scanalyzed System Restoration Module | -6/Factory | Scanalyzed Robot Schematics ------------------ None Fabricated ------------ M-22 Extractor | x1 | -6/Factory | Preloaded R-06 Scavenger | x2 | -6/Factory | Preloaded Alien Tech Used ----------------- None Achievements -------------- A New Friend A Powerful Ally? Back For More Hey, That's Mine! Oops Packrat Safety First Tank Challenges ------------ None Game ------ Seed FireNeutrinoBiocell Manual? 0 Play Time 02:23:20 Cumulative 30.5 hours Start 2024.11.22 @ 22:32:23 End 2024.11.23 @ 12:24:34 Sessions 1 Manual Loads 0 Difficulty Explorer Special Mode None Game No. 50 Rogue 46 Adventurer 0 Explorer 4 Win Type - Total 0 Types 0/0/0/0/0/0/0/0/0 Lore% 9 Gallery% 26 Achievement% 16 Wizard Run 0 Options --------- Layout 1 ASCII 0 Keyboard 0 Movement Arrows Keybinds 0 Fullscreen 1 Font 16/SmallcapsGlow Map View 25x20 Zoom Use 99% Tactical HUD 0 Map Filters NONE Filters NONE Steam SD RUN: 925d6d60-5d3a-4e4f-90bd-1cb98ccbbd30